Cogmind - Beta 14 @@@ ROGUE MODE // 2025.03.17 @ 20:13:06 Player: Lava Result: Destroyed by X-57 Shotgunner with Shotgun Performance ------------- Evolutions (2) 1000 Regions Visited (5) 1000 Robots Destroyed (59) 295 Value Destroyed (1499) 1499 Prototype IDs (27) 540 Alien Tech Used (0) 0 Bonus (300) 300 TOTAL SCORE: 4634 Bonus ------- Aligned with FarCom 300 Cogmind --------- Core Integrity 0/550 Matter 290/300 Energy 147/160 System Corruption 0% Temperature Cool (3) Movement Treading (161) Location -8/Materials Parts ------- > --- POWER (1) -------- Light Nuclear Core > --- PROPULSION (3) --- Armored Treads Armored Treads Advanced Treads > --- UTILITY (5) ------ Lightpack 2.0 Signal Interpreter Terrain Scan Processor > --- WEAPON (2) ------- Hammer Great Maul > --- INVENTORY (40) --- Light Nuclear Core Light Nuclear Core Light Nuclear Core Light Treads Aluminum Leg Aluminum Leg Cesium-ion Thruster Improved VTOL Module Cryofiber Web Improved Heat Sink Improved Signal Interpreter ECM Suite Light Armor Plating Hardened Medium Armor Plating Hardened Medium Armor Plating Hardened Medium Armor Plating Hardened Medium Armor Plating Hardened Medium Armor Plating Hardened Medium Armor Plating Hacking Suite Hacking Suite Heavy EM Pulse Gun Heavy EM Pulse Gun Heavy EM Pulse Gun EM Shotgun EM Shotgun Heavy EM Shotgun Particle Gun Particle Gun Improved Medium Laser Field Laser Heavy Particle Gun Advanced Beam Rifle Maul Mining Claw Blade Saw Peak State ------------ > --- POWER ------------ Light Nuclear Core > --- PROPULSION ------- Armored Treads Armored Treads Advanced Treads > --- UTILITY ---------- Lightpack 2.0 Signal Interpreter Terrain Scan Processor > --- WEAPON ----------- Hammer Great Maul > --- INVENTORY -------- Light Nuclear Core Light Nuclear Core Light Nuclear Core Light Treads Aluminum Leg Aluminum Leg Cesium-ion Thruster Improved VTOL Module Cryofiber Web Improved Heat Sink Improved Signal Interpreter ECM Suite Light Armor Plating Hardened Medium Armor Plating Hardened Medium Armor Plating Hardened Medium Armor Plating Hardened Medium Armor Plating Hardened Medium Armor Plating Hardened Medium Armor Plating Hacking Suite Hacking Suite Heavy EM Pulse Gun Heavy EM Pulse Gun Heavy EM Pulse Gun EM Shotgun EM Shotgun Heavy EM Shotgun Particle Gun Particle Gun Improved Medium Laser Field Laser Heavy Particle Gun Advanced Beam Rifle Maul Mining Claw Blade Saw [Rating: 58] Favorites ----------- Power Heavy Ion Engine Engine Heavy Ion Engine Power Core Light Nuclear Core Propulsion Light Treads Treads Light Treads Leg Aluminum Leg Utility Visual Processing Unit Device Improved Terrain Scanner Storage Large Storage Unit Processor Visual Processing Unit Weapon Assault Rifle Energy Gun Particle Gun Ballistic Gun Assault Rifle Launcher Rocket Launcher Impact Weapon Hammer Build | -11 -10 -10 -10 -9 -8 ------- Run | Yrd Mat Min Exi Min Mat Slots Evolved 4 | . . . . . 4 Power . | . . . . . . Propulsion 1 | . . . . . 1 Utility 3 | . . . . . 3 Weapon . | . . . . . . Parts Attached 39 | 6 5 1 2 1 24 Power 5 | 1 1 . 1 . 2 Engine 4 | 1 1 . 1 . 1 Core 1 | . . . . . 1 Reactor . | . . . . . . Propulsion 11 | 2 . . 1 . 8 Treads 8 | 2 . . 1 . 5 Leg 3 | . . . . . 3 Wheel . | . . . . . . Hover . | . . . . . . Flight . | . . . . . . Utility 8 | 1 3 . . . 4 Device 1 | . . . . . 1 Storage 4 | 1 2 . . . 1 Processor 3 | . 1 . . . 2 Hackware . | . . . . . . Protection . | . . . . . . Artifact . | . . . . . . Weapon 15 | 2 1 1 . 1 10 Energy Gun 4 | 1 1 . . 1 1 Energy Cannon . | . . . . . . Ballistic Gun 4 | 1 . 1 . . 2 Ballistic Cannon . | . . . . . . Launcher 4 | . . . . . 4 Special Weapon . | . . . . . . Impact Weapon 3 | . . . . . 3 Slashing Weapon . | . . . . . . Piercing Weapon . | . . . . . . Special Melee Weapon . | . . . . . . Unidentified Prototypes 1 | . 1 . . . . Parts Lost 15 | . . . . 1 14 Power 2 | . . . . . 2 Propulsion 6 | . . . . 1 5 Utility 1 | . . . . . 1 Weapon 6 | . . . . . 6 Highest Loss Streak 9 | . . . . 1 9 To Critical Strikes . | . . . . . . Average Slot Usage (%) 91 | . 99 100 100 99 76 Engine 11 | . 14 14 14 14 7 Treads 25 | . 28 28 28 27 22 Device 2 | . . . . . 6 Storage 12 | . 14 14 14 14 9 Processor 12 | . 13 14 14 14 11 Energy Gun 9 | . 14 14 14 14 1 Ballistic Gun 9 | . 14 14 14 14 1 Impact Weapon 5 | . . . . . 14 Peak Build Rating 58 | 6 12 13 15 15 58 Average Rating 25 | 3 11 12 13 14 49 On Entrance 10 | . 6 12 13 15 14 Naked Turns . | . . . . . . Heaviest Build 33 | 13 33 33 33 33 20 Greatest Support 62 | 40 40 40 40 40 62 Greatest Overweight (x) 1 | . . . . 1 1 Average Overweight (x) . | . . . . . . Largest Inventory Capacity 40 | 8 15 15 15 15 40 Average Capacity 22 | 6 10 15 15 15 40 Most Carried 37 | 8 15 15 15 15 37 Average Carried 14 | 4 8 14 14 14 19 Final Capacity 40 | 8 15 15 15 15 40 Final Carried 36 | 6 15 15 14 15 36 Class Distribution -------------------- 64% | Mutant 20% | Hauler-Assassin 8% | Hauler-Mutant 5% | Hauler-Skirmisher Dominant Class ---------------- Mutant | -10/Materials Mutant | -10/Mines Mutant | -10/Exiles Mutant | -9/Mines Hauler-Assassin | -8/Materials Resources | -11 -10 -10 -10 -9 -8 ----------- Run | Yrd Mat Min Exi Min Mat Matter Collected 1014 | 251 194 103 . 35 431 Remotely . | . . . . . . Salvage Created 1780 | . 436 152 . 75 1117 Parts 102 | . 35 2 . 13 52 Haulers Intercepted 2 | . 1 . . . 1 Recyclers Shooed 3 | . 2 . . . 1 Parts Field Recycled . | . . . . . . Retrieved Matter . | . . . . . . Parts Self-Destructed . | . . . . . . Prevented . | . . . . . . Kills | -11 -10 -10 -10 -9 -8 ------- Run | Yrd Mat Min Exi Min Mat Combat Hostiles Destroyed 45 | . 6 7 . 6 26 Melee 8 | . . . . . 8 Guns 24 | . 6 7 . 6 5 AOE 7 | . . . . . 7 Classes Destroyed 11 | . 8 1 . . 2 Worker 3 | . 2 . . . 1 Builder 2 | . 1 . . . 1 Hauler 2 | . 1 . . . 1 Recycler 3 | . 1 . . . 2 Mechanic 1 | . . . . . 1 Operator 2 | . 1 . . . 1 Watcher 6 | . 3 . . . 3 Swarmer 15 | . 2 . . 6 7 Grunt 20 | . 4 2 . . 14 Sentry 5 | . . . . . 5 Assembled 5 | . . 5 . . . Best Kill Streak 8 | . 2 2 . 3 8 Combat Bots Only 5 | . 2 2 . 3 5 Max Kills in Single Turn 3 | . 2 1 . 1 3 Gunslinging . | . . . . . . Exploded 2 | . . . . . 2 Melee 1 | . . . . . 1 Uniques/NPCs Destroyed . | . . . . . . Combat | -11 -10 -10 -10 -9 -8 -------- Run | Yrd Mat Min Exi Min Mat Hostile Shots Fired 286 | . 31 21 . 48 186 Missed 77 | . 7 4 . 11 55 Damage Taken 2894 | . 253 210 . 309 2122 Core 681 | . 44 22 . 59 556 Absorbed by Shields . | . . . . . . Core Remaining (%) 75 | 100 . . . 50 . Volleys Fired 141 | . 46 31 . 14 50 Largest 2 | . 2 2 . 2 2 Hottest 85 | . 85 85 . 85 85 Shots Fired 247 | . 89 44 . 28 86 Gun 237 | . 89 44 . 28 76 Cannon . | . . . . . . Launcher 10 | . . . . . 10 Special . | . . . . . . Kinetic 137 | . 46 31 . 14 46 Thermal 100 | . 43 13 . 14 30 Explosive 10 | . . . . . 10 Electromagnetic . | . . . . . . Robot Hit Streak 10 | . 7 5 . 2 10 Robot Miss Streak 5 | . 5 5 . 3 4 Penetration Max . | . . . . . . Secondary Targets 2 | . 1 . . 1 . Max Gunslinging Chain 1 | . 1 . . 1 . Shots Hit Robots 166 | . 41 21 . 12 92 Core Hits 93 | . 21 11 . 6 55 Critical Kills 4 | . . . . . 4 Critical Parts Destroyed 9 | . . . . . 9 Critical Strikes 18 | . 3 . . 1 14 Burn 5 | . 3 . . 1 1 Destroy 1 | . . . . . 1 Smash 12 | . . . . . 12 Melee Attacks 49 | . . . . . 49 Impact 49 | . . . . . 49 Slashing . | . . . . . . Piercing . | . . . . . . Sneak Attacks 4 | . . . . . 4 Combat Hostiles 1 | . . . . . 1 Follow-up Attacks 4 | . . . . . 4 Damage Inflicted 4363 | . 604 308 . 225 3226 Guns 1820 | . 600 299 . 210 711 Cannons . | . . . . . . Explosions 911 | . . . . . 911 Melee 1591 | . . . . . 1591 Ramming 41 | . 4 9 . 15 13 Kinetic 960 | . 270 201 . 91 398 Thermal 860 | . 330 98 . 119 313 Explosive 911 | . . . . . 911 Electromagnetic . | . . . . . . Impact 1591 | . . . . . 1591 Slashing . | . . . . . . Piercing . | . . . . . . Highest Corruption . | . . . . . . Average Corruption . | . . . . . . Corruption Purged . | . . . . . . Corruption Blocked . | . . . . . . Overload Shots . | . . . . . . Overflow Damage 724 | . . . . . 724 Projectiles 39 | . . . . . 39 Explosions 24 | . . . . . 24 Melee 661 | . . . . . 661 Knockbacks 5 | . . . . . 5 Impact 4 | . . . . . 4 Kinetic . | . . . . . . Secondary 1 | . . . . . 1 Self-Inflicted Damage 36 | . . . . . 36 Shots 1 | . . . . . 1 Rammed 9 | . 2 2 . 1 4 Targets Rammed 10 | . 2 2 . 1 5 Kicked 1 | . . . . . 1 Crushed . | . . . . . . Highest Temperature 207 | . 207 108 . 189 178 Average Temperature 60 | . 57 45 . 94 55 Received Heat Transfer 1035 | . 105 45 . . 885 Siege Activations . | . . . . . . Robots Corrupted 9 | . . . . . 9 Combat Hostiles 6 | . . . . . 6 Parts Fried 14 | . . . . . 14 Impact Corruptions 24 | . . . . . 24 Robots Melted . | . . . . . . Combat Hostiles . | . . . . . . Parts Melted 3 | . 1 . . . 2 Heat Transferred 2405 | . 999 222 . 370 814 Parts Sabotaged . | . . . . . . Parts Stolen . | . . . . . . Parts Stripped . | . . . . . . Power Chain Reactions . | . . . . . . Alert | -11 -10 -10 -10 -9 -8 ------- Run | Yrd Mat Min Exi Min Mat Peak Influence 373 | . 152 94 . 70 373 Initial 29 | . . 29 . . 23 Average 96 | . 37 35 . 16 205 Maximum Alert Level 1 | . . . . . 1 Low Security (%) 74 | 100 100 100 . 100 32 Level 1 25 | . . . . . 67 Level 2 . | . . . . . . Level 3 . | . . . . . . Level 4 . | . . . . . . Level 5 . | . . . . . . High Security . | . . . . . . Max Security . | . . . . . . Squads Dispatched 7 | . 2 . . . 5 Investigation 3 | . 1 . . . 2 Extermination . | . . . . . . Reinforcement 4 | . 1 . . . 3 Assault . | . . . . . . Garrison . | . . . . . . Intercept . | . . . . . . Searches Triggered . | . . . . . . Construction Impeded 1 | . . . . . 1 Haulers Reinforced . | . . . . . . Active Scanning Responses . | . . . . . . Cargo Convoy Interrupts . | . . . . . . Stealth | -11 -10 -10 -10 -9 -8 --------- Run | Yrd Mat Min Exi Min Mat Distress Signals 9 | . 1 . . . 8 Communications Jammed . | . . . . . . Distress Signals . | . . . . . . Times Spotted 89 | . 17 12 . 6 54 Peak Tracking Total 9 | . 4 3 . 3 9 Tactical Retreats 5 | . . 2 . . 3 Traps | -11 -10 -10 -10 -9 -8 ------- Run | Yrd Mat Min Exi Min Mat Traps Triggered 2 | . 1 . . . 1 Indirectly . | . . . . . . Trap Hack Attempts . | . . . . . . Triggered . | . . . . . . Disarmed 1 | . 1 . . . . Reprogrammed . | . . . . . . Reused . | . . . . . . Traps Extracted . | . . . . . . Installed . | . . . . . . Triggered 1 | . . . . . 1 Machines | -11 -10 -10 -10 -9 -8 ---------- Run | Yrd Mat Min Exi Min Mat Machines Disabled 3 | . 1 . . . 2 Max in Single Turn 1 | . 1 . . . 1 Machines Repaired . | . . . . . . Machines Dismantled . | . . . . . . Machines Sabotaged . | . . . . . . Overloaded Fab Kills . | . . . . . . Hacking | -11 -10 -10 -10 -9 -8 --------- Run | Yrd Mat Min Exi Min Mat Machines Accessed 18 | . 5 1 2 . 10 Terminals 14 | . 5 1 . . 8 Fabricators . | . . . . . . Repair Stations 1 | . . . . . 1 Recycling Units . | . . . . . . Scanalyzers 1 | . . . . . 1 Garrison Access . | . . . . . . Total Hacks 35 | . 15 1 2 . 17 Successful 15 | . 9 . 2 . 4 Failed 20 | . 6 1 . . 13 Catastrophic 7 | . 2 . . . 5 Database Lockouts . | . . . . . . Manual 17 | . 4 1 1 . 11 Terminals 28 | . 15 1 . . 12 Fabricators . | . . . . . . Repair Stations 2 | . . . . . 2 Recycling Units . | . . . . . . Scanalyzers 3 | . . . . . 3 Garrison Access . | . . . . . . Terminal Hacks 12 | . 9 . 2 . 1 Record 1 | . . . 1 . . Prototype ID Bank 1 | . 1 . . . . Alert Level 2 | . 1 . . . 1 Locate Traps 2 | . 2 . . . . Disarm Traps 1 | . 1 . . . . Dispatch Records 1 | . 1 . . . . Recall Reinforcements 1 | . 1 . . . . Hauler Manifests 1 | . 1 . . . . Zone Layout 1 | . 1 . . . . Derelict Proto ID Bank 1 | . . . 1 . . Fabricator Hacks . | . . . . . . Repair Station Hacks . | . . . . . . Recycling Unit Hacks . | . . . . . . Scanalyzer 3 | . . . . . 3 Insert Component 2 | . . . . . 2 Analyze 1 | . . . . . 1 Garrison Access Hacks . | . . . . . . Unauthorized Hacks . | . . . . . . Terminals . | . . . . . . Fabricators . | . . . . . . Repair Stations . | . . . . . . Recycling Units . | . . . . . . Scanalyzers . | . . . . . . Garrison Access . | . . . . . . Data Cores Recovered . | . . . . . . Used . | . . . . . . Hacking Detections 15 | . 4 1 . . 10 Full Trace Events . | . . . . . . Feedback Events . | . . . . . . Feedback Blocked . | . . . . . . Robot Schematics Acquired . | . . . . . . Robots Built . | . . . . . . Authchips . | . . . . . . Time . | . . . . . . Total Robot Build Rating . | . . . . . . Part Schematics Acquired 1 | . . . . . 1 Parts Built . | . . . . . . Authchips . | . . . . . . Time . | . . . . . . Total Part Build Rating . | . . . . . . Parts Repaired . | . . . . . . Time . | . . . . . . Parts Recycled . | . . . . . . Recycled Matter . | . . . . . . Retrieved Matter . | . . . . . . Retrieved Components . | . . . . . . Parts Scanalyzed 1 | . . . . . 1 Part Schematics Acquired 1 | . . . . . 1 Parts Damaged . | . . . . . . Bothacking | -11 -10 -10 -10 -9 -8 ------------ Run | Yrd Mat Min Exi Min Mat Used RIF Installer . | . . . . . . Robots Hacked . | . . . . . . Non-combat . | . . . . . . Combat . | . . . . . . Robot Hacks Applied . | . . . . . . Relay Couplers Released . | . . . . . . Fabnet Peak Effective % . | . . . . . . Robots Rewired . | . . . . . . Allies Hacked . | . . . . . . Hacks Repelled . | . . . . . . Allies | -11 -10 -10 -10 -9 -8 -------- Run | Yrd Mat Min Exi Min Mat Total Allies 3 | . . 3 . . . Largest Group 3 | . . 3 . . . Highest-Rated Group 40 | . . 40 . . . Highest-Rated Ally 16 | . . 16 . . . Total Orders . | . . . . . . Ally Attacks 24 | . . 24 . . . Total Damage 193 | . . 193 . . . Kills 3 | . . 3 . . . Allies Corrupted . | . . . . . . Allies Melted . | . . . . . . Intel | -11 -10 -10 -10 -9 -8 ------- Run | Yrd Mat Min Exi Min Mat Robot Analysis Total . | . . . . . . Derelict Logs Recovered 2 | . . 2 . . . Drone Launches . | . . . . . . Drone Recoveries . | . . . . . . Exploration | -11 -10 -10 -10 -9 -8 ------------- Run | Yrd Mat Min Exi Min Mat Turns Passed 5593 | 64 1382 679 362 1105 2001 Spaces Moved 2626 | 35 741 365 223 398 864 Core 14 | 8 . . . . 6 Treads 2575 | 27 741 365 223 398 821 Legs 37 | . . . . . 37 Wheels . | . . . . . . Hover . | . . . . . . Flight . | . . . . . . Fastest Speed 50 | 50 160 160 160 160 100 Average Speed 158 | 134 160 160 160 162 156 Slowest Speed 240 | 160 160 160 160 240 190 Overloaded Moves . | . . . . . . Propulsion Burnouts . | . . . . . . Robots Hopped . | . . . . . . Cave-ins Triggered . | . . . . . . Exploration Rate (%) 57 | 3 94 71 43 63 70 Regions Visited 5 Branch Regions 3 Pre-discovered Areas 1 | . . 1 . . . Known Exits Taken . | . . . . . . Unknown Exits Taken 5 | 1 1 1 1 1 . Scrap Searched 2 | . . 2 . . . Spaces Dug 6 | . . . . . 6 Terrain Destroyed 64 | . . . . . 64 Melee 6 | . . . . . 6 Projectile . | . . . . . . AOE 58 | . . . . . 58 Terrain Rammed . | . . . . . . Walls Destroyed . | . . . . . . Machines Disabled . | . . . . . . Actions | -11 -10 -10 -10 -9 -8 --------- Run | Yrd Mat Min Exi Min Mat Total 3712 | 52 850 415 229 829 1337 Wait 753 | . 35 13 . 411 294 Move 2621 | 34 740 364 222 397 864 Hop . | . . . . . . Pick Up 82 | 12 14 2 1 3 50 Fast Attach 2 | . 2 . . . . Attach 25 | 6 . . . . 19 Detach 1 | . . . . . 1 Swap 12 | . 3 1 2 1 5 Drop 22 | . 8 2 4 2 6 Fire 141 | . 46 31 . 14 50 Melee 43 | . . . . . 43 Ram . | . . . . . . Kick 1 | . . . . . 1 Crush 9 | . 2 2 . 1 4 Escape Stasis . | . . . . . . Rewire . | . . . . . . Trap . | . . . . . . Miscellaneous . | . . . . . . Route ------- -11/Scrapyard -10/Materials (discovered 4 exits: [*Mat x3] / *Min) -10/Mines (discovered 2 exits: [*Mat] / *Exi) -10/Exiles -9/Mines -8/Materials History --------- Turn | Location | Event 7 | -11/Scrapyard | Discovered new exit (range 15) 65 | -11/Scrapyard | Entered Materials 314 | -10/Materials | Build established: Mutant 468 | -10/Materials | Discovered new exit (range 15) 839 | -10/Materials | Discovered new exit (range 12) 1237 | -10/Materials | Discovered new exit (range 3) 1333 | -10/Materials | Discovered new exit (range 18) 1447 | -10/Materials | Entered Mines 1448 | -10/Mines | Assembled infested the area 1645 | -10/Mines | Assisted by bots powering up and referring to "LRC-V3" 1817 | -10/Mines | Discovered new exit (range 7) 2118 | -10/Mines | Deemed a non-threat by the Exiles lab entrance 2119 | -10/Mines | Discovered new exit (range 5) 2126 | -10/Mines | Entered Exiles 2165 | -10/Exiles | Met 8R-AWN 2192 | -10/Exiles | Met EX-HEX 2242 | -10/Exiles | Met EX-BIN 2261 | -10/Exiles | Aligned with FarCom system 2262 | -10/Exiles | Given EX-Vault access code 2299 | -10/Exiles | Opened EX-Vault 2317 | -10/Exiles | Found Lightpack 2.0 2364 | -10/Exiles | Warned to stay clear of 0b10 Research branches 2465 | -10/Exiles | Discovered new exit (range 14) 2488 | -10/Exiles | Left Exiles lab with Lightpack 2.0 2488 | -10/Exiles | Entered Mines 3327 | -9/Mines | Received a Rocket Launcher from a helpful Derelict 3528 | -9/Mines | Discovered new exit (range 10) 3576 | -9/Mines | Found a hidden stash of uninstalled traps 3593 | -9/Mines | Entered Materials 3593 | -8/Materials | Evolved 4 slots: Propulsion x1, Utility x3 3899 | -8/Materials | Build established: Hauler-Skirmisher 3955 | -8/Materials | Core integrity fell below 50% 4008 | -8/Materials | Lost 9 parts (1p3n5w) 4222 | -8/Materials | Build established: Hauler-Assassin 4486 | -8/Materials | Core integrity fell below 20% 5389 | -8/Materials | Build established: Hauler-Mutant 5594 | -8/Materials | Destroyed by X-57 Shotgunner with Shotgun Last Messages --------------- Acquired Prototype Energy Gun. Connecting with Repair Station... Acquired 10 matter. Acquired Imp. Signal Interpreter. Connecting with Recycling Unit... ALERT: Suspicious intruders detected, dispatching Specialist reinforcements to area. Y-45 Defender suffers critical hit (Smash). Destroyed Lgt. Treads. Y-45 Defender system corrupted by crushing effect. Y-45 Defender suffers critical hit (Smash). Y-45 Defender destroyed. Acquired Arm. Treads. Acquired Hacking Suite. U-05 Engineer builds a Wall. Neutrino Reactor explodes. U-05 Engineer destroyed. Door malfunctions. Lgt. Treads destroyed. Map ----- +----------------------------------------------------+ | | | | | ????????????????????????????????????? | | ????????????????????????????????????? | | ????????????????????????????????????? | | #################???????????????????? | | #??????????????????? | | ####### ##### #??????????????????? | | ??????# ##+#####????????????????????? | | ??????# # +?gg?????Y???????????? | | ??????# # #????????????????????? | | ####### # #????????????????????? | | + #????????????????????? | | ####### # #????????????????????? | | #??# # #????????????????????? | | "" #??# ########????????????????????? | | "" #??# #???????????????????????????? | | "" #??# ########????????????????????? | | "" #??# # #????????#+#?????????? | | "" #??# #* """ #????????# #?????????? | | ""?#??# # """ #????????# #?????#???? | | ""????# + """ #????????# #??## ###?? | | ?????# # ##??????## ### #?? | | ##????# # ] ##! #### #?? | | ??????# ########???? H #?? | | ??????# #??????????????# @ #?? | | ??????# #??????????????## ### #?? | | #####?# #???????????????# #?????????? | | #?# #???????????????#*#?????????? | | #?# #????????????####/##????????? | | #?# #????????????# x #????????? | | ###+####?????????# #????????? | | # #?????????# #????????? | | # %"" #?????????# " ########## | | # """ #?????????# ## # | | # """ ##????????# x#" """ # | | ##### ##??####### ## """ # | | ##??# #???# ###+#### """ # | | #######/####### =#! # | | T %+[ # | | ############+## #* !! # | | ######### # ###+#### !! # | | ### """ ###/#### ## !! # | | ### """ # # ""## # | | ## """ # """%# Y"## # | | =!! % ### # "R" # ""###### ### | | =!! ### # " " # #?????##?? | | =! ###+###### # #????????? | | ########? ?#???# # #????????? | | = ###?## ??#??###### # #????????? | +----------------------------------------------------+ Best States ------------- Heat Dissipation 31 Energy Generation 14 Energy Capacity 280 Matter Stores 300 Matter Capacity 300 Sight Range 18 Terrain Scan Range 16 Terrain Scan Density 85 Evasion (%) 55 Recoil Reduction 3 Item Schematics ----------------- Imp. Medium Laser | -8/Materials | Scanalyzed Robot Schematics ------------------ None Fabricated ------------ Nothing Alien Tech Used ----------------- None Achievements -------------- Packrat Challenges ------------ None Game ------ Seed BombRiotGravjet Manual? 0 Play Time 00:35:51 Cumulative 19.6 hours Start 2025.03.17 @ 19:37:18 End 2025.03.17 @ 20:13:06 Sessions 1 Manual Loads 0 Difficulty Rogue Special Mode None Game No. 31 Rogue 31 Adventurer 0 Explorer 0 Win Type - Total 0 Types 0/0/0/0/0/0/0/0/0 Lore% 12 Gallery% 21 Achievement% 21 Wizard Run 0 Options --------- Layout 1 ASCII 0 Keyboard 0 Movement Mouse Keybinds 0 Fullscreen 1 Font 32/SmallcapsGlow Map View 50x40 Zoom Use 0% Tactical HUD 0 Map Filters NONE Filters NONE Steam 1 RUN: 189582f6-94d2-4919-978e-6f82df23186c